Cogmind - Beta 13 @@@ ROGUE MODE // 2024.07.25 @ 16:00:40 Player: N.W.L Result: Destroyed by S-27 Virus with Autogun Performance ------------- Evolutions (6) 3000 Regions Visited (24) 4800 Robots Destroyed (380) 1900 Value Destroyed (11967) 11967 Prototype IDs (53) 1060 Alien Tech Used (2) 400 Bonus (2713) 2713 TOTAL SCORE: 25840 Bonus ------- High Alert Combat Kills 1184 Follower Combat Kills 2475 Entered Garrisons 200 Network Hubs Disabled 400 Acquired ECA 300 Met Zhirov 300 Built Enhanced Grunts 300 A7 Reached Mainframe 300 Met R17 at Cetus 500 Friendly Fire -3246 Cogmind --------- Core Integrity 0/1150 Matter 15/300 Energy 100/100 System Corruption 17% Temperature Cool (0) Movement Core (50) Location -4/Factory Parts ------- > --- POWER (2) -------- (None) > --- PROPULSION (6) --- (None) > --- UTILITY (8) ------ (None) > --- WEAPON (3) ------- (None) > --- INVENTORY (5) ---- Encrypted Comm Array Improved Kinecellerator Advanced Shield Generator Powered Hammer Heavy Pick Peak State ------------ > --- POWER ------------ Fusion Reactor Antimatter Reactor > --- PROPULSION ------- Centrium Heavy Treads Centrium Heavy Treads Centrium Heavy Treads > --- UTILITY ---------- Advanced Heat Sink Huge Storage Unit Improved Signal Interpreter Core Analyzer Advanced Particle Charger Centrium Medium Armor Plating Centrium Medium Armor Plating Improved Hacking Suite > --- WEAPON ----------- Neutron Cannon Advanced KE Penetrator Advanced KE Penetrator > --- INVENTORY -------- Centrium Heavy Treads Wheel Advanced Heat Sink Advanced Coolant Injector High-capacity Matter Pod Matter Compressor Encrypted Comm Array Core Analyzer Centrium Medium Armor Plating Graphene Brace Long-range Tractor Beam Transdimensional Reconstructor Advanced Variable Charge Gun Advanced Variable Charge Gun Advanced Variable Charge Gun Advanced Variable Charge Gun Advanced KE Penetrator Light Antimatter Cannon Mini Grenade Launcher Advanced Datajack Powered Hammer [Rating: 148] Favorites ----------- Power Heavy Ion Engine Engine Heavy Ion Engine Power Core Enhanced Nuclear Core Reactor Fusion Reactor Propulsion Light Treads Treads Light Treads Leg Carbon-fiber Leg Wheel Wheel Hover Unit Backup Propulsion III Flight Unit VTOL Module Utility Huge Storage Unit Device Advanced Heat Sink Storage Huge Storage Unit Processor Improved Signal Interpreter Hackware Improved Hacking Suite Protection Medium Armor Plating Weapon Improved Assault Rifle Energy Gun Advanced Variable Charge Gun Energy Cannon Neutron Cannon Ballistic Gun Improved Assault Rifle Ballistic Cannon Light Antimatter Cannon Launcher Mini Grenade Launcher Impact Weapon Flail Special Melee Weapon Improved Datajack Build | -11 -10 -10 -9 -9 -9 -8 -8 -8 -7 -7 -7 -7 -7 -6 -6 -6 -6 -6 -5 -5 -5 -5 -4 -4 ------- Run | Yrd Mat Min Mat Min Exi Min Mat Gar Fac Was Fac Low Low Fac Ext Cet Arc Hub Fac Upp Upp Zhi Pro Fac Slots Evolved 12 | . . . 2 . . . 2 . 2 . . . . 2 . . . . 2 . . . . 2 Power 1 | . . . . . . . . . . . . . . . . . . . . . . . . 1 Propulsion 4 | . . . 1 . . . . . 1 . . . . 1 . . . . 1 . . . . . Utility 6 | . . . 1 . . . 1 . 1 . . . . 1 . . . . 1 . . . . 1 Weapon 1 | . . . . . . . 1 . . . . . . . . . . . . . . . . . Parts Attached 364 | 7 10 6 46 3 1 13 14 23 15 15 70 13 . 13 33 11 6 6 2 3 8 8 11 27 Power 24 | 1 1 2 2 . . . 1 1 1 1 6 . . . 4 . 1 1 . . . 1 . 1 Engine 10 | 1 . 1 2 . . . 1 . . . 3 . . . 1 . . 1 . . . . . . Core 11 | . 1 1 . . . . . 1 1 1 3 . . . 3 . . . . . . . . . Reactor 3 | . . . . . . . . . . . . . . . . . 1 . . . . 1 . 1 Propulsion 74 | 2 1 . 12 1 . 1 2 5 1 4 15 2 . 3 12 3 2 . . . . 1 2 5 Treads 57 | 2 1 . 12 1 . 1 2 5 1 4 9 2 . 1 8 3 1 . . . . . 2 2 Leg 2 | . . . . . . . . . . . . . . . 1 . 1 . . . . . . . Wheel 11 | . . . . . . . . . . . 6 . . 2 3 . . . . . . . . . Hover . | . . . . . . . . . . . . . . . . . . . . . . . . . Flight 4 | . . . . . . . . . . . . . . . . . . . . . . 1 . 3 Utility 108 | 2 5 1 9 1 . 2 4 4 2 6 21 2 . 8 9 4 3 3 1 1 2 5 3 10 Device 41 | 1 . . . . . 1 . 1 1 1 9 1 . 5 5 3 3 . . . 2 1 2 5 Storage 11 | 1 3 . . 1 . . . . . 1 1 . . 1 1 . . . . . . 1 . 1 Processor 5 | . . . . . . . 1 . . . 2 . . 1 . . . . . . . . . 1 Hackware 6 | . . . 2 . . . . . . . 2 . . . . . . 2 . . . . . . Protection 45 | . 2 1 7 . . 1 3 3 1 4 7 1 . 1 3 1 . 1 1 1 . 3 1 3 Artifact . | . . . . . . . . . . . . . . . . . . . . . . . . . Weapon 158 | 2 3 3 23 1 1 10 7 13 11 4 28 9 . 2 8 4 . 2 1 2 6 1 6 11 Energy Gun 21 | . . . . . . . . . 1 2 6 . . . 1 1 . . 1 . 4 . 1 4 Energy Cannon 8 | . . . 1 . . . . . . . 1 2 . . 1 2 . . . . . . 1 . Ballistic Gun 45 | 2 2 1 12 . . 4 5 6 2 . 4 . . . . 1 . 1 . . . . 3 2 Ballistic Cannon 35 | . . 2 3 . . 1 1 1 4 2 9 5 . 1 3 . . . . 1 1 . . 1 Launcher 29 | . . . 3 1 . 4 1 4 . . 6 2 . 1 1 . . . . 1 1 . 1 3 Special Weapon . | . . . . . . . . . . . . . . . . . . . . . . . . . Impact Weapon 14 | . 1 . 4 . 1 1 . 2 2 . 2 . . . . . . . . . . . . 1 Slashing Weapon . | . . . . . . . . . . . . . . . . . . . . . . . . . Piercing Weapon . | . . . . . . . . . . . . . . . . . . . . . . . . . Special Melee Weapon 6 | . . . . . . . . . 2 . . . . . 2 . . 1 . . . 1 . . Unidentified Prototypes 27 | . . . 3 . . . . . 2 1 10 . . . . 3 1 1 . . . 5 . 1 Corrupted Parts 4 | . . . . . . . . . . . 1 . . . . . . . . . . . 3 . System Corruption 15 | . . . . . . . . . . . 1 . . . . . . . . . . . 14 . Parts Lost 71 | . 1 4 7 . . 1 1 5 2 3 14 3 . 5 7 1 . . . . . . 2 15 Power 7 | . . 2 1 . . . 1 . . . 1 . . . 1 . . . . . . . . 1 Propulsion 31 | . 1 . 3 . . 1 . 2 . 2 6 1 . 4 3 1 . . . . . . 1 6 Utility 18 | . . 2 1 . . . . 2 1 1 3 1 . . 2 . . . . . . . 1 4 Weapon 15 | . . . 2 . . . . 1 1 . 4 1 . 1 1 . . . . . . . . 4 Highest Loss Streak 8 | . 1 2 5 . . 1 1 2 1 3 8 3 . 3 4 1 . . . . . . 2 5 To Critical Strikes 2 | . . . . . . . . . . 1 . . . . 1 . . . . . . . . . Average Slot Usage (%) 91 | . 100 94 97 100 100 100 99 100 100 64 95 96 92 90 83 92 86 86 81 82 82 81 79 66 Engine 4 | . 5 7 9 11 11 11 9 1 . 2 . . . . 1 . . . 5 5 5 2 . . Core 3 | . 8 4 . . . . . 7 7 3 5 7 7 6 4 6 . . . . . . . . Treads 23 | . 28 28 32 33 33 33 27 27 30 16 24 16 30 25 10 25 20 20 17 17 17 17 14 11 Wheel 1 | . . . . . . . . . . . 4 13 . . 5 . . . . . . . . . Device 8 | . 7 . . . . 10 8 . 6 . 13 7 7 17 21 20 20 6 5 5 12 13 11 8 Storage 8 | . 14 14 11 11 11 11 9 9 7 3 7 7 7 6 6 6 6 6 5 5 5 5 5 7 Processor 3 | . . . . . . . 8 9 7 1 . . . 4 6 6 6 6 5 5 5 5 5 7 Hackware 2 | . . . 7 . . . . . . . 5 6 . . . . . 12 11 6 5 5 5 3 Protection 10 | . 6 9 14 22 22 11 9 18 15 15 8 13 15 7 3 5 6 6 10 15 9 8 10 3 Energy Gun 2 | . . . . . . . . . . 11 8 . . . . 4 6 3 4 . 14 11 5 4 Energy Cannon 1 | . . . . . . . . . . . . 1 7 6 7 7 6 6 . . . . 2 1 Ballistic Gun 9 | . 26 7 15 16 11 16 25 23 10 . . . . . . 4 6 8 11 11 2 . 7 5 Ballistic Cannon 5 | . . 21 5 . . . . . 9 5 10 19 15 12 9 . . . . 4 . . . . Naked Turns 180 | . . . . . . . . . . 86 . . . . . . . . . . . . . 94 Heaviest Build 228 | 12 55 60 68 108 108 108 109 111 119 228 228 76 75 121 118 128 126 132 124 131 131 123 133 149 Greatest Support 240 | 40 40 40 69 66 63 63 63 63 80 80 82 80 80 80 120 188 188 188 188 188 188 188 240 240 Greatest Overweight (x) 7 | . 1 1 1 1 1 1 1 1 1 3 7 3 . 5 7 1 . . . . . . . 1 Average Overweight (x) . | . . 1 . 1 1 1 1 1 1 . 1 2 . . 2 . . . . . . . . . Largest Inventory Capacity 35 | 8 20 20 20 25 25 25 25 25 25 35 35 20 20 25 25 25 25 25 25 25 25 25 25 25 Average Capacity 22 | 6 13 20 20 24 25 25 25 25 25 17 20 20 20 21 25 25 25 25 25 25 25 25 25 21 Most Carried 29 | 5 15 20 20 23 25 25 25 25 25 29 29 20 19 21 25 25 25 25 25 25 25 25 25 25 Average Carried 20 | 2 10 18 19 22 23 24 24 24 24 13 18 19 18 19 23 24 24 24 24 24 25 24 22 19 Final Capacity 35 | 8 20 20 20 25 25 25 25 25 25 35 20 20 20 25 25 25 25 25 25 25 25 25 25 5 Final Carried 29 | 3 15 18 20 23 25 24 24 24 24 29 18 18 19 19 25 25 25 25 24 25 25 25 21 5 Class Distribution -------------------- 34% | Mutant 26% | Scavenger-Tank 9% | Scavenger-Gunner 8% | Tank 5% | Scavenger-Mutant Dominant Class ---------------- Mutant | -10/Materials Mutant | -10/Mines Mutant | -9/Materials Mutant | -9/Mines Mutant | -9/Exiles Mutant | -8/Mines Scavenger-Gunner | -8/Materials Scavenger-Tank | -8/Garrison Scavenger-Tank | -7/Factory Tank | -7/Waste Scavenger-Tank | -7/Factory Scavenger-Tank | -7/Lower Caves Scavenger-Tank | -7/Lower Caves Scavenger-Tank | -6/Factory Tank | -6/Extension Commander-Tank | -6/Cetus Scavenger-Tank | -6/Archives Scavenger-Tank | -6/Hub_04(d) Scavenger-Tank | -5/Factory Scavenger-Tank | -5/Upper Caves Scavenger-Gunner | -5/Upper Caves Scavenger-Mutant | -5/Zhirov Scavenger-Tank | -4/Proximity Caves Scavenger-Gunner | -4/Factory Resources | -11 -10 -10 -9 -9 -9 -8 -8 -8 -7 -7 -7 -7 -7 -6 -6 -6 -6 -6 -5 -5 -5 -5 -4 -4 ----------- Run | Yrd Mat Min Mat Min Exi Min Mat Gar Fac Was Fac Low Low Fac Ext Cet Arc Hub Fac Upp Upp Zhi Pro Fac Matter Collected 10710 | 286 361 381 1250 24 94 430 445 742 869 415 2144 537 11 300 716 109 162 158 188 133 132 93 252 478 Remotely 466 | . . . . . . . . . . . 466 . . . . . . . . . . . . . Salvage Created 12539 | 114 772 274 1669 15 . 414 544 799 538 . 1887 345 . 140 416 . 282 1246 588 170 584 184 404 1154 Parts 685 | 6 45 35 103 6 . 20 35 42 21 . 110 13 . 3 22 . 14 47 23 10 24 2 16 88 Haulers Intercepted 23 | . 1 . 6 . . . 2 . 2 . 5 . . 1 1 . . 4 1 . . . . . Recyclers Shooed 3 | . . . 1 . . . . . . . 2 . . . . . . . . . . . . . Parts Field Recycled . | . . . . . . . . . . . . . . . . . . . . . . . . . Retrieved Matter . | . . . . . . . . . . . . . . . . . . . . . . . . . Parts Self-Destructed 56 | . . . . . . . . . . . . 10 . . . . . . . 7 26 . 13 . Prevented . | . . . . . . . . . . . . . . . . . . . . . . . . . Kills | -11 -10 -10 -9 -9 -9 -8 -8 -8 -7 -7 -7 -7 -7 -6 -6 -6 -6 -6 -5 -5 -5 -5 -4 -4 ------- Run | Yrd Mat Min Mat Min Exi Min Mat Gar Fac Was Fac Low Low Fac Ext Cet Arc Hub Fac Upp Upp Zhi Pro Fac Combat Hostiles Destroyed 242 | . 13 16 27 4 . 16 9 22 9 . 40 12 . 1 8 . 1 2 7 2 12 . 12 29 Melee 1 | . 1 . . . . . . . . . . . . . . . . . . . . . . . Guns 106 | . 12 6 17 . . 3 6 14 4 . 5 . . . . . . 2 7 1 7 . 6 16 Cannons 56 | . . 8 7 . . . . . 5 . 18 7 . 1 4 . 1 . . 1 . . . 4 AOE 79 | . . 2 3 4 . 13 3 8 . . 17 5 . . 4 . . . . . 5 . 6 9 Classes Destroyed 22 | 2 5 2 2 . . 2 1 . 1 . 3 . . . . . . . . 2 . . 1 1 Worker 30 | . 2 3 6 . . 2 2 . 3 . 6 . . 1 . . . 3 . . . . . 2 Builder 23 | . . 1 . . . . . . . . 8 . . . 2 . . 4 . . . . . 8 Tunneler 9 | 1 . 2 1 . . 3 1 . . . 1 . . . . . . . . . . . . . Hauler 23 | . 1 . 6 . . . 2 . 2 . 5 . . 1 1 . . 4 1 . . . . . Recycler 18 | 1 1 1 3 . . 1 1 . 2 . 7 . . . 1 . . . . . . . . . Minesweeper 1 | . . . . . . . . . . . . . . . . . . . . 1 . . . . Mechanic 6 | . . . 1 . . . . . . . 4 . . . . . . . . . . . . 1 Operator 10 | . 1 . 2 . . . . . . . 1 . . . . . 5 . . . . . . 1 Drone 2 | . . . . . . . . . . . . . . . . . . . . . . . 2 . Watcher 8 | . 2 . 3 . . . . . . . . . . . . . . . 1 . . . . 2 Swarmer 68 | . . 15 3 4 . 4 3 3 . . 8 1 . . 5 . . . . . 3 . 5 14 Saboteur 1 | . . . . . . . . . . . . . . . . . . . . . . . . 1 Grunt 100 | . 13 . 14 . . 8 4 13 3 . 19 8 . . 1 . . 2 5 1 2 . 2 5 Brawler 9 | . . . . . . 2 . 1 1 . 2 . . . . . . . . . 2 . 1 . Duelist 7 | . . . . . . 2 . . . . . 1 . . . . . . 1 . 3 . . . Protector 1 | . . . . . . . . . . . 1 . . . . . . . . . . . . . Sentry 23 | . . . 10 . . . 1 3 . . 1 1 . . 2 . 1 1 . . 1 . . 2 Specialist 1 | . . . . . . . . . . . 1 . . . . . . . . . . . . . Hunter 16 | . . . . . . . 1 2 4 . 1 . . 1 . . . . 1 1 1 . 2 2 Programmer 13 | . . . . . . . . . 1 . 6 1 . . . . . . . . . . . 5 Heavy 1 | . . . . . . . . . . . 1 . . . . . . . . . . . . . Enhanced Grunt 4 | . . . . . . . . . . . . . . . . . . 4 . . . . . . Samaritan 2 | . . . . . . . . . . . . . . . . . . . . 1 1 . . . Thug 1 | . . . . . . . . . . . 1 . . . . . . . . . . . . . Savage 1 | . . . . . . . . . . . . . . . . . . 1 . . . . . . Butcher 1 | . . . . . . . . . . . . . . . . . 1 . . . . . . . Guerrilla 2 | . . . . . . . . . . . . . . . . . . 2 . . . . . . Best Kill Streak 18 | 2 4 5 8 4 . 5 5 7 4 . 18 4 . 1 4 . 3 7 8 2 10 . 6 8 Combat Bots Only 11 | . 2 3 5 4 . 4 5 7 2 . 11 4 . 1 4 . 1 1 5 1 10 . 6 7 Max Kills in Single Turn 6 | 1 2 3 2 4 . 4 2 2 2 . 4 2 . 1 3 . 1 6 1 1 5 . 2 6 Gunslinging 1 | . . . . . . . 1 . . . . . . . . . . . . . . . . 1 Exploded 4 | . . 2 1 4 . 4 1 2 . . 3 2 . . 3 . . . . . 4 . 2 4 Melee 1 | . 1 . . . . . . . . . . . . . . . . . . . . . . . Uniques/NPCs Destroyed 1 | . . 1 . . . . . . . . . . . . . . . . . . . . . . YI-UF0 (-10/Mines) Combat | -11 -10 -10 -9 -9 -9 -8 -8 -8 -7 -7 -7 -7 -7 -6 -6 -6 -6 -6 -5 -5 -5 -5 -4 -4 -------- Run | Yrd Mat Min Mat Min Exi Min Mat Gar Fac Was Fac Low Low Fac Ext Cet Arc Hub Fac Upp Upp Zhi Pro Fac Hostile Shots Fired 1660 | . 56 55 191 2 . 29 56 102 100 4 298 76 . 25 110 . . 14 34 9 30 . 141 328 Missed 450 | . 13 11 37 . . 3 17 27 37 2 83 22 . 7 37 . . 2 4 3 3 . 43 99 Damage Taken 19149 | . 509 594 2131 19 . 498 482 1075 790 67 3443 726 . 265 699 92 . 613 628 108 496 . 1778 4136 Core 2827 | . 78 61 309 . . 15 50 88 25 47 570 44 . . 55 . . 42 101 . 30 . 171 1141 Absorbed by Shields 248 | . . . . . . . . 3 . . . . . 66 166 13 . . . . . . . . Reduced by Siege Mode 292 | . . . . . . . . . . . . . . . . . . . 28 . 34 . 25 205 Redirected to Shielding 198 | . 13 . 27 . . . . . . . . . . . . . . . . . . . 158 . Ignored by Resistances 113 | . . . . . . . . . . . 113 . . . . . . . . . . . . . Regen/Repaired (Parts) 594 | . . . 318 . . . . . . . 276 . . . . . . . . . . . . . Core Remaining (%) 56 | 100 . 44 . . . 19 . 74 . . . . 2 . . . . 88 . . . . 69 . Volleys Fired 898 | 4 64 46 137 6 . 38 27 57 59 5 122 27 . 9 67 5 30 21 21 11 27 3 35 77 Largest 3 | 2 2 2 2 2 . 2 3 3 3 1 3 3 . 3 3 1 3 3 3 3 3 2 3 3 Hottest 310 | 40 40 78 78 46 . 62 76 76 124 48 241 182 . 182 230 90 205 275 150 130 240 160 270 310 Shots Fired 1798 | 8 127 84 256 10 . 61 58 138 144 7 226 48 . 21 94 5 58 41 63 23 74 6 76 170 Gun 1134 | 8 127 24 188 8 . 26 52 126 71 2 76 . . . 2 1 56 29 63 16 70 6 60 123 Cannon 560 | . . 60 63 . . 3 2 2 73 5 131 38 . 20 89 4 2 12 . 7 1 . 11 37 Launcher 104 | . . . 5 2 . 32 4 10 . . 19 10 . 1 3 . . . . . 3 . 5 10 Special . | . . . . . . . . . . . . . . . . . . . . . . . . . Kinetic 1304 | 8 127 84 251 8 . 29 54 128 143 5 160 32 . 12 26 1 28 22 42 23 3 . 29 89 Thermal 390 | . . . . . . . . . 1 2 47 6 . 8 65 4 30 19 21 . 68 6 42 71 Explosive 104 | . . . 5 2 . 32 4 10 . . 19 10 . 1 3 . . . . . 3 . 5 10 Electromagnetic . | . . . . . . . . . . . . . . . . . . . . . . . . . Robot Hit Streak 28 | 3 16 6 24 1 . 8 18 28 11 6 13 14 . 2 9 4 7 14 23 4 23 7 9 18 Robot Miss Streak 5 | 1 4 4 4 2 . 2 2 3 3 2 4 3 . 4 1 . 5 5 3 3 1 . 4 5 Penetration Max 1 | . . . . . . . 1 . . . . . . . . . 1 1 1 . . . . 1 Secondary Targets 14 | . 1 2 1 . . . 1 1 . . 2 . . . . . . . . . 1 . 1 4 Max Gunslinging Chain 1 | . 1 1 1 . . . 1 1 . . 1 . . . . . . . . . 1 . 1 1 Shots Hit Robots 1137 | 3 91 46 166 3 . 28 44 95 107 5 149 25 . 8 82 1 32 23 44 11 30 6 42 96 Core Hits 637 | 3 42 23 66 4 . 40 24 49 32 1 107 19 . 5 25 . 13 28 17 6 28 4 22 79 Critical Kills 13 | . . . . . . . . 2 . . . . . . . . . 1 4 2 . . 2 2 Critical Parts Destroyed 27 | . 2 . 1 . . . . . . . 2 . . . . . 2 3 4 1 . . 3 9 Critical Strikes 70 | . 2 . 7 . . . . 2 2 . 16 1 . 1 . . 3 4 8 4 . . 5 15 Burn 1 | . . . . . . . . . . . 1 . . . . . . . . . . . . . Destroy 41 | . 2 . 2 . . . . 2 . . 1 . . . . . 3 4 8 3 . . 5 11 Blast 27 | . . . 5 . . . . . 2 . 13 1 . 1 . . . . . 1 . . . 4 Smash 1 | . . . . . . . . . . . 1 . . . . . . . . . . . . . Melee Attacks 103 | . 5 . 6 . 1 1 . 11 21 . 12 . . . 37 . . 2 . . . 2 . 5 Impact 52 | . 5 . 6 . 1 1 . 11 11 . 12 . . . . . . . . . . . . 5 Slashing . | . . . . . . . . . . . . . . . . . . . . . . . . . Piercing . | . . . . . . . . . . . . . . . . . . . . . . . . . Sneak Attacks 59 | . . . . . . 1 . . 10 . 7 . . . 37 . . 2 . . . 2 . . Combat Hostiles 10 | . . . . . . . . . 9 . . . . . . . . 1 . . . . . . Follow-up Attacks . | . . . . . . . . . . . . . . . . . . . . . . . . . Damage Inflicted 37693 | 39 1035 1009 3271 289 . 2193 1056 2280 2054 156 7907 1237 . 297 1730 27 1091 2493 1176 293 1574 126 1669 4691 Guns 15885 | 39 957 177 2021 47 . 213 681 1443 932 21 1274 . . . 63 27 1017 699 1176 233 948 126 1175 2616 Cannons 9408 | . . 678 1017 . . 41 . . 1122 135 3317 469 . 268 1238 . 74 114 . 60 . . . 875 Explosions 11593 | . . 154 215 240 . 1833 375 837 . . 2773 768 . 29 429 . . 1671 . . 626 . 494 1149 Melee 736 | . 78 . . . . 106 . . . . 524 . . . . . . . . . . . . 28 Ramming 71 | . . . 18 2 . . . . . . 19 . . . . . . 9 . . . . . 23 Kinetic 19035 | 39 957 855 3038 47 . 254 681 1443 2035 135 3844 397 . 119 499 27 482 570 738 293 57 . 501 2024 Thermal 6672 | . . 154 . 49 . . . . 19 21 747 72 . 149 926 . 609 330 438 . 891 126 674 1467 Explosive 9532 | . . . 215 191 . 1833 375 837 . . 2773 768 . 29 305 . . . . . 626 . 494 1086 Electromagnetic 1647 | . . . . . . . . . . . . . . . . . . 1584 . . . . . 63 Impact 736 | . 78 . . . . 106 . . . . 524 . . . . . . . . . . . . 28 Slashing . | . . . . . . . . . . . . . . . . . . . . . . . . . Piercing . | . . . . . . . . . . . . . . . . . . . . . . . . . Highest Corruption 17 | . 1 1 . . . . . . 5 5 9 9 9 . . . . 5 . . . . 14 17 Average Corruption 4 | . 1 1 . . . . . . 2 5 6 9 9 . . . . 2 . . . . 7 9 Corruption Purged . | . . . . . . . . . . . . . . . . . . . . . . . . . Corruption Blocked . | . . . . . . . . . . . . . . . . . . . . . . . . . Effects 173 | . 10 11 . . . . . . 2 23 72 24 1 . . . . 1 . . . . 12 17 Message Errors 42 | . 4 3 . . . . . . 1 6 14 7 1 . . . . 1 . . . . 3 2 Matter Fused 35 | . 3 4 . . . . . . . 6 14 3 . . . . . . . . . . 2 3 Heat Flow Errors 20 | . . 2 . . . . . . . 3 12 1 . . . . . . . . . . 1 1 Energy Discharges 19 | . 1 1 . . . . . . . 1 9 5 . . . . . . . . . . 2 . Parts Rejected 2 | . . . . . . . . . . . 1 . . . . . . . . . . . . 1 Parts Fused 4 | . . . . . . . . . . . 3 1 . . . . . . . . . . . . Data Loss (minor) 16 | . . . . . . . . . . 1 7 5 . . . . . . . . . . 2 1 Data Loss (major) 9 | . 1 1 . . . . . . . 3 1 1 . . . . . . . . . . 1 1 Misfires 7 | . . . . . . . . . . 2 2 . . . . . . . . . . . 1 2 Alerts 6 | . . . . . . . . . . 1 3 1 . . . . . . . . . . . 1 Misdirections 2 | . . . . . . . . . . . . . . . . . . . . . . . . 2 Weapon Failures 11 | . 1 . . . . . . . 1 . 6 . . . . . . . . . . . . 3 Overload Shots 3 | . . . . . . . . . . . . . . . . . . 1 . . . . 1 1 Overflow Damage 962 | . . 32 10 29 . 87 18 47 33 . 451 60 . . 47 . . 76 . . . . . 72 Projectiles 346 | . . 6 10 . . 3 . . 33 . 199 30 . . 36 . . . . . . . . 29 Explosions 325 | . . 26 . 29 . 18 18 47 . . 27 30 . . 11 . . 76 . . . . . 43 Melee 291 | . . . . . . 66 . . . . 225 . . . . . . . . . . . . . Knockbacks 60 | . . 5 8 . . . . . 8 . 27 5 . 1 2 . . . . . . . . 4 Impact 4 | . . . 1 . . . . . . . 2 . . . . . . . . . . . . 1 Kinetic 52 | . . 5 6 . . . . . 8 . 23 5 . 1 1 . . . . . . . . 3 Secondary 4 | . . . 1 . . . . . . . 2 . . . 1 . . . . . . . . . Self-Inflicted Damage 737 | . . 39 . . . 104 31 . . . 62 . . . 23 . . 229 . . 29 . 114 106 Shots 21 | . . 1 . . . 4 2 . . . 2 . . . 1 . . 3 . . 1 . 4 3 Rammed 19 | . . . 2 1 . . . . . . 6 . . . . . . 1 . . . . . 9 Targets Rammed 19 | . . . 2 1 . . . . . . 6 . . . . . . 1 . . . . . 9 Kicked . | . . . . . . . . . . . . . . . . . . . . . . . . . Crushed . | . . . . . . . . . . . . . . . . . . . . . . . . . Highest Temperature 587 | . 47 263 424 . . 56 36 116 217 213 587 456 . 394 431 . 9 138 126 6 192 . 316 297 Average Temperature 78 | . 13 35 107 . . 19 6 35 68 86 111 149 . 161 101 . 6 63 45 4 56 . 122 78 Received Heat Transfer 4688 | . 291 . 930 . . 225 144 477 114 . 1053 261 . 79 201 . . 45 189 27 81 . 218 353 Effects 24 | . . 1 1 . . . . . 3 . 10 3 . 2 1 . . . . . . . 2 1 Shutdowns 1 | . . . . . . . . . . . 1 . . . . . . . . . . . . . Energy Bleed 3 | . . . 1 . . . . . . . . . . 1 . . . . . . . . 1 . Interference 13 | . . 1 . . . . . . 3 . 4 3 . . . . . . . . . . 1 1 Short Circuit 3 | . . . . . . . . . . . 2 . . . 1 . . . . . . . . . Damage (minor) 2 | . . . . . . . . . . . 1 . . 1 . . . . . . . . . . Damage (core) 2 | . . . . . . . . . . . 2 . . . . . . . . . . . . . Siege Activations 12 | . . . . . . . . . . . . . . . . . . . 2 1 4 . 1 4 Total Turns 303 | . . . . . . . . . . . . . . . . . . . 46 6 118 . 30 103 Longest Duration 54 | . . . . . . . . . . . . . . . . . . . 41 6 47 . 30 54 Robots Corrupted 3 | . . . . . . . . . . . . . . . . . . 3 . . . . . . Combat Hostiles . | . . . . . . . . . . . . . . . . . . . . . . . . . Parts Fried 13 | . . . . . . . . . . . 6 . . . . . . 7 . . . . . . Impact Corruptions 10 | . . . . . . 3 . . . . 7 . . . . . . . . . . . . . Robots Melted . | . . . . . . . . . . . . . . . . . . . . . . . . . Combat Hostiles . | . . . . . . . . . . . . . . . . . . . . . . . . . Parts Melted 5 | . . . . . . . . . . . 1 . . . . . . . 1 . 2 . . 1 Heat Transferred 7079 | . . 150 . 50 . . . . 37 37 1073 . . . 876 . 629 274 629 . 999 92 703 1530 Parts Sabotaged . | . . . . . . . . . . . . . . . . . . . . . . . . . Parts Stolen . | . . . . . . . . . . . . . . . . . . . . . . . . . Parts Stripped . | . . . . . . . . . . . . . . . . . . . . . . . . . Power Chain Reactions 2 | . . . . . . . . . . . . . . . 1 . . 1 . . . . . . Alert | -11 -10 -10 -9 -9 -9 -8 -8 -8 -7 -7 -7 -7 -7 -6 -6 -6 -6 -6 -5 -5 -5 -5 -4 -4 ------- Run | Yrd Mat Min Mat Min Exi Min Mat Gar Fac Was Fac Low Low Fac Ext Cet Arc Hub Fac Upp Upp Zhi Pro Fac Peak Influence 1096 | 10 237 194 440 338 . 327 232 1039 714 208 861 . . 347 878 544 401 1096 894 . . . . 983 Initial 545 | . 6 54 25 152 . . 85 150 545 208 . . . 295 56 491 203 140 536 . . . . 200 Average 267 | 5 111 95 207 247 . 134 92 625 569 63 267 . . 294 224 517 352 492 738 . . . . 536 Maximum Alert Level 3 | . 1 . 2 1 . 1 1 3 3 1 3 . . 1 3 2 2 3 3 . . . . 3 Low Security (%) 50 | 100 95 100 43 48 . 60 94 3 . 91 35 . . 8 69 . . 20 . . . . . . Level 1 25 | . 4 . 52 51 . 39 5 22 . 8 45 . . 91 8 3 70 11 . . . . . 31 Level 2 17 | . . . 3 . . . . 26 99 . 13 . . . 17 96 29 54 40 . . . . 44 Level 3 6 | . . . . . . . . 48 . . 4 . . . 4 . . 14 59 . . . . 23 Level 4 . | . . . . . . . . . . . . . . . . . . . . . . . . . Level 5 . | . . . . . . . . . . . . . . . . . . . . . . . . . High Security . | . . . . . . . . . . . . . . . . . . . . . . . . . Max Security . | . . . . . . . . . . . . . . . . . . . . . . . . . Squads Dispatched 45 | . 4 . 4 . . . 2 . 6 . 13 . . . 2 . . 1 3 . 1 . . 9 Investigation 10 | . 2 . 1 . . . 1 . 1 . 1 . . . 1 . . . 1 . . . . 2 Extermination 8 | . . . . . . . . . 1 . 5 . . . . . . . . . . . . 2 Reinforcement 22 | . 2 . 3 . . . . . 3 . 7 . . . 1 . . 1 1 . . . . 4 Assault 3 | . . . . . . . . . 1 . . . . . . . . . . . 1 . . 1 Garrison 2 | . . . . . . . 1 . . . . . . . . . . . 1 . . . . . Intercept . | . . . . . . . . . . . . . . . . . . . . . . . . . Searches Triggered . | . . . . . . . . . . . . . . . . . . . . . . . . . Construction Impeded 4 | . . . . . . . . . . . 1 . . . 1 . . . . . . . . 2 Haulers Reinforced 3 | . . . . . . . . . 1 . . . . . . . . 1 . . . . . 1 Active Scanning Responses . | . . . . . . . . . . . . . . . . . . . . . . . . . Cargo Convoy Interrupts 1 | . . . . . . . . . . . 1 . . . . . . . . . . . . . Stealth | -11 -10 -10 -9 -9 -9 -8 -8 -8 -7 -7 -7 -7 -7 -6 -6 -6 -6 -6 -5 -5 -5 -5 -4 -4 --------- Run | Yrd Mat Min Mat Min Exi Min Mat Gar Fac Was Fac Low Low Fac Ext Cet Arc Hub Fac Upp Upp Zhi Pro Fac Distress Signals 23 | . 2 1 4 . . . . . 1 . 2 . . . . 2 . 3 2 . . . . 6 Communications Jammed . | . . . . . . . . . . . . . . . . . . . . . . . . . Distress Signals . | . . . . . . . . . . . . . . . . . . . . . . . . . Times Spotted 435 | . 26 16 43 3 . 17 12 26 15 9 65 13 . 5 35 10 30 12 9 2 14 . 20 53 Peak Tracking Total 11 | . 5 3 5 . . 3 7 6 5 6 11 4 . 4 6 5 1 4 4 1 10 . 5 10 Tactical Retreats 19 | . 2 1 . . . . 2 1 1 2 3 . . . . . . . . . 2 . 3 2 Traps | -11 -10 -10 -9 -9 -9 -8 -8 -8 -7 -7 -7 -7 -7 -6 -6 -6 -6 -6 -5 -5 -5 -5 -4 -4 ------- Run | Yrd Mat Min Mat Min Exi Min Mat Gar Fac Was Fac Low Low Fac Ext Cet Arc Hub Fac Upp Upp Zhi Pro Fac Traps Triggered 9 | . 1 . 1 . . . . 2 1 . 2 . . . 1 . . . . . . . . 1 Indirectly . | . . . . . . . . . . . . . . . . . . . . . . . . . Trap Hack Attempts . | . . . . . . . . . . . . . . . . . . . . . . . . . Triggered . | . . . . . . . . . . . . . . . . . . . . . . . . . Disarmed . | . . . . . . . . . . . . . . . . . . . . . . . . . Reprogrammed . | . . . . . . . . . . . . . . . . . . . . . . . . . Reused 1 | . . . . . . . . . . . . . . . . . . . . . . . 1 . Traps Extracted . | . . . . . . . . . . . . . . . . . . . . . . . . . Installed 1 | . . . . . . . . . . . . . . . . . . . . . . . 1 . Triggered 2 | . . . . . . . . . . . 1 . . . . . . . . . . . 1 . Most Traps Carried 1 | . . . . . . . . . . . . . . . . . . . . 1 1 1 1 . Machines | -11 -10 -10 -9 -9 -9 -8 -8 -8 -7 -7 -7 -7 -7 -6 -6 -6 -6 -6 -5 -5 -5 -5 -4 -4 ---------- Run | Yrd Mat Min Mat Min Exi Min Mat Gar Fac Was Fac Low Low Fac Ext Cet Arc Hub Fac Upp Upp Zhi Pro Fac Machines Disabled 56 | . . 2 2 4 . 4 3 4 . . 1 . . . 1 1 3 21 4 . 1 1 . 4 Max in Single Turn 10 | . . 2 1 4 . 2 1 1 . . 1 . . . 1 1 1 10 2 . 1 1 . 2 Garrison Access 2 | . . . . . . . . . . . . . . . . . . 1 . . . . . 1 Garrison Relay 3 | . . . . . . . . 3 . . . . . . . . . . . . . . . . Network Hub 2 | . . . . . . . . . . . . . . . . . . 2 . . . . . . Machines Repaired . | . . . . . . . . . . . . . . . . . . . . . . . . . Machines Dismantled . | . . . . . . . . . . . . . . . . . . . . . . . . . Machines Sabotaged . | . . . . . . . . . . . . . . . . . . . . . . . . . Overloaded Fab Kills . | . . . . . . . . . . . . . . . . . . . . . . . . . Hacking | -11 -10 -10 -9 -9 -9 -8 -8 -8 -7 -7 -7 -7 -7 -6 -6 -6 -6 -6 -5 -5 -5 -5 -4 -4 --------- Run | Yrd Mat Min Mat Min Exi Min Mat Gar Fac Was Fac Low Low Fac Ext Cet Arc Hub Fac Upp Upp Zhi Pro Fac Machines Accessed 59 | . 6 1 11 . 1 . 4 2 3 . 3 . . 3 7 1 . 8 1 . . 4 . 4 Terminals 43 | . 5 1 8 . . . 3 2 3 . 2 . . 3 6 1 . 7 . . . . . 2 Fabricators . | . . . . . . . . . . . . . . . . . . . . . . . . . Repair Stations 4 | . . . 2 . . . . . . . 1 . . . 1 . . . . . . . . . Recycling Units 3 | . 1 . 1 . . . . . . . . . . . . . . . . . . . . 1 Scanalyzers . | . . . . . . . . . . . . . . . . . . . . . . . . . Garrison Access 4 | . . . . . . . 1 . . . . . . . . . . 1 1 . . . . 1 Total Hacks 173 | . 16 1 35 . 4 . 12 5 7 . 10 . . 8 17 1 . 23 3 . . 17 . 14 Successful 89 | . 7 . 23 . 4 . 3 . 1 . 5 . . 4 8 . . 14 . . . 17 . 3 Failed 82 | . 8 1 11 . . . 9 5 6 . 5 . . 4 9 1 . 9 3 . . . . 11 Catastrophic 26 | . 3 1 . . . . 1 3 3 . 2 . . 2 3 1 . 1 1 . . . . 5 Database Lockouts 2 | . 1 . 1 . . . . . . . . . . . . . . . . . . . . . Manual 60 | . 15 1 13 . . . 9 . 4 . 5 . . . 1 1 . 8 . . . . . 3 Terminals 121 | . 14 1 25 . . . 11 5 7 . 7 . . 8 14 1 . 21 . . . . . 7 Fabricators . | . . . . . . . . . . . . . . . . . . . . . . . . . Repair Stations 14 | . . . 8 . . . . . . . 3 . . . 3 . . . . . . . . . Recycling Units 8 | . 2 . 2 . . . . . . . . . . . . . . . . . . . . 4 Scanalyzers . | . . . . . . . . . . . . . . . . . . . . . . . . . Garrison Access 9 | . . . . . . . 1 . . . . . . . . . . 2 3 . . . . 3 Terminal Hacks 66 | . 5 . 13 . 4 . 1 . . . 4 . . 4 6 . . 11 . . . 17 . 1 Record 9 | . . . . . 4 . . . . . . . . . . . . . . . . 5 . . Part Schematic 4 | . . . . . . . . . . . . . . . . . . . . . . 4 . . Robot Analysis 9 | . 2 . 1 . . . 1 . . . 1 . . . . . . . . . . 4 . . Prototype ID Bank 8 | . . . 3 . . . . . . . . . . . 1 . . . . . . 4 . . Open Door 4 | . . . . . . . . . . . . . . 1 3 . . . . . . . . . Level Access Points 1 | . . . . . . . . . . . . . . . . . . 1 . . . . . . Branch Access Points 1 | . . . . . . . . . . . 1 . . . . . . . . . . . . . Emergency Access Points 1 | . . . 1 . . . . . . . . . . . . . . . . . . . . . Terminal Index 3 | . . . . . . . . . . . . . . 1 . . . 1 . . . . . 1 Garrison Index 1 | . . . . . . . . . . . . . . . . . . 1 . . . . . . Alert Level 6 | . 1 . 1 . . . . . . . 1 . . 1 1 . . 1 . . . . . . Unreport Threat 2 | . . . 1 . . . . . . . 1 . . . . . . . . . . . . . Locate Traps 4 | . 1 . 1 . . . . . . . . . . . 1 . . 1 . . . . . . Maintenance Status 1 | . . . . . . . . . . . . . . . . . . 1 . . . . . . Security Status 2 | . . . . . . . . . . . . . . . . . . 2 . . . . . . Patrol Status 1 | . . . . . . . . . . . . . . . . . . 1 . . . . . . Transport Status 2 | . 1 . 1 . . . . . . . . . . . . . . . . . . . . . Hauler Manifests 3 | . . . 2 . . . . . . . . . . . . . . 1 . . . . . . Zone Layout 4 | . . . 2 . . . . . . . . . . 1 . . . 1 . . . . . . Fabricator Hacks . | . . . . . . . . . . . . . . . . . . . . . . . . . Repair Station Hacks 10 | . . . 7 . . . . . . . 1 . . . 2 . . . . . . . . . Scan Component 6 | . . . 4 . . . . . . . 1 . . . 1 . . . . . . . . . Repair 4 | . . . 3 . . . . . . . . . . . 1 . . . . . . . . . Recycling Unit Hacks 3 | . 1 . 1 . . . . . . . . . . . . . . . . . . . . 1 Retrieve Components 3 | . 1 . 1 . . . . . . . . . . . . . . . . . . . . 1 Scanalyzer . | . . . . . . . . . . . . . . . . . . . . . . . . . Garrison Access Hacks 3 | . . . . . . . 1 . . . . . . . . . . 1 . . . . . 1 Unlock Access 1 | . . . . . . . 1 . . . . . . . . . . . . . . . . . Seal Access 2 | . . . . . . . . . . . . . . . . . . 1 . . . . . 1 Unauthorized Hacks 7 | . 1 . 2 . . . 1 . 1 . . . . . . . . 2 . . . . . . Terminals 5 | . . . 1 . . . 1 . 1 . . . . . . . . 2 . . . . . . Assimilate 1 | . . . 1 . . . . . . . . . . . . . . . . . . . . . Botnet 3 | . . . . . . . 1 . 1 . . . . . . . . 1 . . . . . . Operators 1 | . . . . . . . . . . . . . . . . . . 1 . . . . . . Fabricators . | . . . . . . . . . . . . . . . . . . . . . . . . . Repair Stations . | . . . . . . . . . . . . . . . . . . . . . . . . . Recycling Units 2 | . 1 . 1 . . . . . . . . . . . . . . . . . . . . . Tunnel 2 | . 1 . 1 . . . . . . . . . . . . . . . . . . . . . Scanalyzers . | . . . . . . . . . . . . . . . . . . . . . . . . . Garrison Access . | . . . . . . . . . . . . . . . . . . . . . . . . . Data Cores Recovered . | . . . . . . . . . . . . . . . . . . . . . . . . . Used . | . . . . . . . . . . . . . . . . . . . . . . . . . Hacking Detections 45 | . 5 1 10 . . . 3 2 3 . 3 . . 2 4 1 . 7 1 . . . . 3 Full Trace Events 10 | . 1 . 1 . . . 1 2 1 . 1 . . . 1 . . . 1 . . . . 1 Feedback Events . | . . . . . . . . . . . . . . . . . . . . . . . . . Feedback Blocked . | . . . . . . . . . . . . . . . . . . . . . . . . . Robot Schematics Acquired . | . . . . . . . . . . . . . . . . . . . . . . . . . Robots Built . | . . . . . . . . . . . . . . . . . . . . . . . . . Authchips . | . . . . . . . . . . . . . . . . . . . . . . . . . Time . | . . . . . . . . . . . . . . . . . . . . . . . . . Total Robot Build Rating . | . . . . . . . . . . . . . . . . . . . . . . . . . Part Schematics Acquired 4 | . . . . . . . . . . . . . . . . . . . . . . 4 . . Parts Built . | . . . . . . . . . . . . . . . . . . . . . . . . . Authchips . | . . . . . . . . . . . . . . . . . . . . . . . . . Time . | . . . . . . . . . . . . . . . . . . . . . . . . . Total Part Build Rating . | . . . . . . . . . . . . . . . . . . . . . . . . . Parts Repaired 3 | . . . 3 . . . . . . . . . . . . . . . . . . . . . Time 120 | . . . 84 . . . . . . . . . . . 36 . . . . . . . . . Parts Recycled . | . . . . . . . . . . . . . . . . . . . . . . . . . Recycled Matter . | . . . . . . . . . . . . . . . . . . . . . . . . . Retrieved Matter . | . . . . . . . . . . . . . . . . . . . . . . . . . Retrieved Components 19 | . 1 . 10 . . . . . . . . . . . . . . . . . . . . 8 Parts Scanalyzed . | . . . . . . . . . . . . . . . . . . . . . . . . . Part Schematics Acquired . | . . . . . . . . . . . . . . . . . . . . . . . . . Parts Damaged . | . . . . . . . . . . . . . . . . . . . . . . . . . Bothacking | -11 -10 -10 -9 -9 -9 -8 -8 -8 -7 -7 -7 -7 -7 -6 -6 -6 -6 -6 -5 -5 -5 -5 -4 -4 ------------ Run | Yrd Mat Min Mat Min Exi Min Mat Gar Fac Was Fac Low Low Fac Ext Cet Arc Hub Fac Upp Upp Zhi Pro Fac Used RIF Installer . | . . . . . . . . . . . . . . . . . . . . . . . . . Robots Hacked 5 | . . . . . . . . . 1 . . . . . 1 . . 1 . . . 2 . . Non-combat 3 | . . . . . . . . . 1 . . . . . 1 . . 1 . . . . . . Combat 2 | . . . . . . . . . . . . . . . . . . . . . . 2 . . Robot Hacks Applied 5 | . . . . . . . . . 1 . . . . . 1 . . 1 . . . 2 . . parse_system 2 | . . . . . . . . . . . . . . . . . . . . . . 2 . . no_distress 2 | . . . . . . . . . . . . . . . 1 . . 1 . . . . . . find_chute 1 | . . . . . . . . . 1 . . . . . . . . . . . . . . . Relay Couplers Released 16 | . . . . . . . . 14 . . . . . . . . . 2 . . . . . . Machine Destruction 16 | . . . . . . . . 14 . . . . . . . . . 2 . . . . . . Fabnet Peak Effective % . | . . . . . . . . . . . . . . . . . . . . . . . . . Robots Rewired 25 | . . . . . . . . . 3 . . . . . 21 . . 1 . . . . . . Allies Hacked . | . . . . . . . . . . . . . . . . . . . . . . . . . Hacks Repelled . | . . . . . . . . . . . . . . . . . . . . . . . . . Allies | -11 -10 -10 -9 -9 -9 -8 -8 -8 -7 -7 -7 -7 -7 -6 -6 -6 -6 -6 -5 -5 -5 -5 -4 -4 -------- Run | Yrd Mat Min Mat Min Exi Min Mat Gar Fac Was Fac Low Low Fac Ext Cet Arc Hub Fac Upp Upp Zhi Pro Fac Total Allies 57 | . . . 1 . . . . . 3 20 . . . . 27 5 . 1 . . . . . . Largest Group 21 | . . . 1 . . . . . 2 19 13 . . . 21 16 14 10 . . . . . . Highest-Rated Group 877 | . . . 10 . . . . . 37 475 362 . . . 727 877 836 549 . . . . . . Highest-Rated Ally 159 | . . . 10 . . . . . 21 35 31 . . . 159 143 143 96 . . . . . . Total Orders 4 | . . . 2 . . . . . . . . . . . . . 2 . . . . . . . STAY 2 | . . . 1 . . . . . . . . . . . . . 1 . . . . . . . FOLLOW 2 | . . . 1 . . . . . . . . . . . . . 1 . . . . . . . Ally Attacks 481 | . . . . . . . . . 7 84 63 . . . 167 71 37 52 . . . . . . Total Damage 13310 | . . . . . . . . . 138 2814 1674 . . . 3779 2171 1211 1523 . . . . . . Kills 81 | . . . . . . . . . 2 9 13 . . . 31 10 2 14 . . . . . . Allies Corrupted 2 | . . . . . . . . . . . . . . . . . . 2 . . . . . . Allies Melted . | . . . . . . . . . . . . . . . . . . . . . . . . . Intel | -11 -10 -10 -9 -9 -9 -8 -8 -8 -7 -7 -7 -7 -7 -6 -6 -6 -6 -6 -5 -5 -5 -5 -4 -4 ------- Run | Yrd Mat Min Mat Min Exi Min Mat Gar Fac Was Fac Low Low Fac Ext Cet Arc Hub Fac Upp Upp Zhi Pro Fac Robot Analysis Total 9 | . 2 . 1 . . . 1 . . . 1 . . . . . . . . . . 4 . . Derelict Logs Recovered 4 | . . . . . . . . . . . . 1 . . . . . . . . 1 . 2 . Drone Launches . | . . . . . . . . . . . . . . . . . . . . . . . . . Drone Recoveries . | . . . . . . . . . . . . . . . . . . . . . . . . . Exploration | -11 -10 -10 -9 -9 -9 -8 -8 -8 -7 -7 -7 -7 -7 -6 -6 -6 -6 -6 -5 -5 -5 -5 -4 -4 ------------- Run | Yrd Mat Min Mat Min Exi Min Mat Gar Fac Was Fac Low Low Fac Ext Cet Arc Hub Fac Upp Upp Zhi Pro Fac Turns Passed 23121 | 89 1381 1485 2579 313 735 1516 1002 1300 929 1080 2387 679 29 439 2264 519 309 542 261 492 1047 297 708 739 Spaces Moved 9692 | 63 568 560 1044 120 302 556 347 416 259 592 1025 449 18 215 747 226 108 271 101 278 518 169 307 433 Core 517 | 34 . . . . . . . . . 325 . . . . . . . . . . . . . 158 Treads 7909 | 29 568 560 1044 120 302 556 347 416 259 267 638 18 18 211 373 226 108 271 101 278 518 169 307 205 Legs 8 | . . . . . . . . . . . . . . . 8 . . . . . . . . . Wheels 1188 | . . . . . . . . . . . 387 431 . 4 366 . . . . . . . . . Hover . | . . . . . . . . . . . . . . . . . . . . . . . . . Flight 70 | . . . . . . . . . . . . . . . . . . . . . . . . 70 Fastest Speed 32 | 50 160 240 160 240 240 240 240 240 240 50 110 125 162 155 123 160 160 160 160 160 160 160 160 32 Average Speed 188 | 100 168 240 178 240 240 240 240 240 240 169 171 126 162 177 251 166 160 160 160 160 160 160 160 100 Slowest Speed 610 | 160 240 240 240 240 240 240 240 240 240 400 400 162 162 242 610 240 160 160 160 160 160 160 160 240 Overloaded Moves . | . . . . . . . . . . . . . . . . . . . . . . . . . Propulsion Burnouts . | . . . . . . . . . . . . . . . . . . . . . . . . . Robots Hopped . | . . . . . . . . . . . . . . . . . . . . . . . . . Cave-ins Triggered . | . . . . . . . . . . . . . . . . . . . . . . . . . Teleports 1 | . . . . . . . . . . . . . . . . . . . . . . . . 1 Exploration Rate (%) 51 | 4 93 82 92 31 74 97 29 50 5 96 31 67 5 6 73 68 72 44 5 55 72 60 65 21 Regions Visited 24 Branch Regions 14 Pre-discovered Areas 8 | . 1 1 1 . 1 . . . . . . 1 . . . . . . . . . 3 . . Known Exits Taken 13 | . . . . . . . 1 . . . 1 1 . 1 1 1 1 1 1 1 1 1 1 . Unknown Exits Taken 8 | 1 1 1 1 1 1 1 . . . . . . 1 . . . . . . . . . . . Scrap Searched 11 | . . 1 . 1 . 1 . . . . . 1 1 . . . . . . 4 1 . 1 . Spaces Dug 323 | . 1 1 11 . 1 30 1 1 9 . 8 1 . 12 47 . . 168 . 1 11 . 12 8 Terrain Destroyed 1154 | . 1 21 43 40 1 164 20 36 24 . 100 36 . 17 72 . 8 355 46 12 41 . 46 71 Melee 22 | . 1 . 5 . 1 . . 1 9 . 5 . . . . . . . . . . . . . Projectile 243 | . . 6 1 . . . 2 . 15 . 38 9 . 6 33 . 8 17 14 12 23 . 23 36 AOE 889 | . . 15 37 40 . 164 18 35 . . 57 27 . 11 39 . . 338 32 . 18 . 23 35 Terrain Rammed . | . . . . . . . . . . . . . . . . . . . . . . . . . Walls Destroyed . | . . . . . . . . . . . . . . . . . . . . . . . . . Machines Disabled . | . . . . . . . . . . . . . . . . . . . . . . . . . Actions | -11 -10 -10 -9 -9 -9 -8 -8 -8 -7 -7 -7 -7 -7 -6 -6 -6 -6 -6 -5 -5 -5 -5 -4 -4 --------- Run | Yrd Mat Min Mat Min Exi Min Mat Gar Fac Was Fac Low Low Fac Ext Cet Arc Hub Fac Upp Upp Zhi Pro Fac Total 12883 | 80 868 618 1485 135 312 671 470 591 425 666 1443 514 18 258 1045 369 190 339 153 305 673 190 458 607 Wait 1435 | 1 196 3 205 . 4 60 59 78 56 12 142 20 . 13 122 95 32 37 30 9 121 . 102 38 Move 9669 | 62 567 559 1043 119 301 555 346 415 259 591 1024 448 17 214 746 225 107 270 100 277 517 168 306 433 Hop . | . . . . . . . . . . . . . . . . . . . . . . . . . Pick Up 175 | 6 17 4 19 4 3 2 10 2 6 25 21 5 1 3 15 12 5 . . 3 . 1 1 10 Fast Attach 94 | 4 1 1 13 . . . 2 . 2 10 22 . . 4 12 4 2 1 . . . 7 2 7 Attach 86 | 3 1 2 5 . . 1 3 5 4 3 21 5 . 7 4 2 . . 1 1 . 1 4 13 Detach 28 | . . . 1 . . . 1 . 1 1 11 . . 4 2 2 . 1 . . . . 1 3 Swap 186 | . 8 3 28 3 1 12 9 18 9 2 27 8 . 2 17 5 4 5 1 2 8 1 5 8 Drop 172 | . 9 . 26 2 2 2 13 1 4 17 35 1 . 2 14 19 10 1 . 2 . 7 1 4 Fire 898 | 4 64 46 137 6 . 38 27 57 59 5 122 27 . 9 67 5 30 21 21 11 27 3 35 77 Melee 103 | . 5 . 6 . 1 1 . 11 21 . 12 . . . 37 . . 2 . . . 2 . 5 Ram 12 | . . . . . . . . . . . 3 . . . . . . . . . . . . 9 Kick . | . . . . . . . . . . . . . . . . . . . . . . . . . Crush 7 | . . . 2 1 . . . . . . 3 . . . . . . 1 . . . . . . Escape Stasis 12 | . . . . . . . . 4 . . . . . . 8 . . . . . . . . . Rewire 5 | . . . . . . . . . 4 . . . . . 1 . . . . . . . . . Trap 1 | . . . . . . . . . . . . . . . . . . . . . . . 1 . Miscellaneous . | . . . . . . . . . . . . . . . . . . . . . . . . . Route ------- -11/Scrapyard -10/Materials (discovered 5 exits: *Mat x3 / *Min x2) -10/Mines (discovered 2 exits: *Mat x2) -9/Materials (discovered 6 exits: *Mat x3 / [*Min] / [*Sto x2]) -9/Mines (discovered 2 exits: *Mat / *Exi) -9/Exiles -8/Mines (discovered 2 exits: *Mat x2) -8/Materials -8/Garrison -7/Factory -7/Waste -7/Factory (discovered 3 exits: *Fac / *Low x2) -7/Lower Caves -7/Lower Caves -6/Factory -6/Extension (discovered 2 exits: *Fac / *Cet) -6/Cetus (discovered 2 exits: *Fac / *Arc) -6/Archives (discovered 3 exits: *Fac / *Hub x2) -6/Hub_04(d) (discovered 4 exits: *Fac x4) -5/Factory -5/Upper Caves -5/Upper Caves (discovered 2 exits: *Fac / *Zhi) -5/Zhirov -4/Proximity Caves -4/Factory History --------- Turn | Location | Event 5 | -11/Scrapyard | Discovered new exit (range 16) 90 | -11/Scrapyard | Entered Materials 314 | -10/Materials | Build established: Mutant 667 | -10/Materials | Central database locked down 773 | -10/Materials | Discovered new exit (range 14) 874 | -10/Materials | Discovered new exit (range 7) 930 | -10/Materials | Discovered new exit (range 16) 1113 | -10/Materials | Discovered new exit (range 8) 1250 | -10/Materials | Discovered new exit (range 16) 1471 | -10/Materials | Entered Mines 1584 | -10/Mines | Learned location of Storage (-9) 1591 | -10/Mines | Discovered new exit (range 9) 1857 | -10/Mines | Destroyed YI-UF0 2311 | -10/Mines | Discovered new exit (range 6) 2550 | -10/Mines | Core integrity fell below 50% 2956 | -10/Mines | Entered Materials 2956 | -9/Materials | Evolved 2 slots: Propulsion x1, Utility x1 3214 | -9/Materials | Lost 5 parts (1p1n1u2w) 3532 | -9/Materials | Discovered new exit (range 11) 3610 | -9/Materials | Discovered new exit (range 13) 3727 | -9/Materials | Discovered new exit (range 13) 3923 | -9/Materials | Discovered new exit (range 15) 3986 | -9/Materials | Discovered new exit (range 5) 4100 | -9/Materials | Repaired Lgt. Treads 4132 | -9/Materials | Repaired Med. Armor Plating 4159 | -9/Materials | Repaired Lgt. Treads 4208 | -9/Materials | Central database locked down 4765 | -9/Materials | Core integrity fell below 50% 5002 | -9/Materials | Discovered new exit (range 4) 5090 | -9/Materials | Build established: Hacker-Mutant 5473 | -9/Materials | Build established: Mutant 5535 | -9/Materials | Entered Mines 5653 | -9/Mines | Discovered new exit (range 8) 5839 | -9/Mines | Deemed a non-threat by the Exiles lab entrance 5839 | -9/Mines | Discovered new exit (range 5) 5848 | -9/Mines | Entered Exiles 5906 | -9/Exiles | Met 8R-AWN 5947 | -9/Exiles | Met EX-HEX 6012 | -9/Exiles | Met EX-BIN 6150 | -9/Exiles | Met EX-DEC 6162 | -9/Exiles | Learned location of Zion (-6) 6281 | -9/Exiles | Visited The Gauntlet 6549 | -9/Exiles | Discovered new exit (range 14) 6583 | -9/Exiles | Entered Mines 7153 | -8/Mines | Discovered new exit (range 11) 7353 | -8/Mines | Discovered new exit (range 8) 7516 | -8/Mines | Core integrity fell below 20% 8062 | -8/Mines | Build established: Scavenger-Mutant 8099 | -8/Mines | Entered Materials 8099 | -8/Materials | Evolved 2 slots: Utility x1, Weapon x1 8411 | -8/Materials | Build established: Scavenger-Gunner 9039 | -8/Materials | Garrison activated, responded to threat 9095 | -8/Materials | Identified exit to Garrison 9101 | -8/Materials | Entered Garrison 9243 | -8/Garrison | Triggered checkpoint 9341 | -8/Garrison | Build established: Scavenger-Tank 9496 | -8/Garrison | Garrison Relay disabled 9623 | -8/Garrison | Triggered checkpoint 9717 | -8/Garrison | Destroyed 7 combat bots 9725 | -8/Garrison | Triggered checkpoint 9729 | -8/Garrison | Triggered checkpoint 9755 | -8/Garrison | Triggered checkpoint 9979 | -8/Garrison | Discovered new exit (range 12) 10096 | -8/Garrison | Garrison Relay disabled 10401 | -8/Garrison | Entered Factory 10401 | -7/Factory | Evolved 2 slots: Propulsion x1, Utility x1 11201 | -7/Factory | First assault squad dispatched 11330 | -7/Factory | Sucked down chute 11330 | -7/Factory | Entered Waste 11330 | -7/Waste | Met up with 1 ally sucked down the chute earlier 11398 | -7/Waste | Spotted C-40 Crusher 11449 | -7/Waste | Spotted C-40 Crusher 11454 | -7/Waste | Spotted C-40 Crusher 11455 | -7/Waste | Spotted C-40 Crusher 11457 | -7/Waste | Spotted C-40 Crusher 11477 | -7/Waste | Crushed by Compactor (1 part destroyed, 2 dropped) 11496 | -7/Waste | Crushed by Compactor (1 part destroyed) 11498 | -7/Waste | Spotted C-40 Crusher 11527 | -7/Waste | Lost 3 parts (2n1u) 11576 | -7/Waste | Discovered new exit (range 13) 11582 | -7/Waste | Warlord forces began an assault 11884 | -7/Waste | Build established: Tank 12292 | -7/Waste | Build established: Hauler-Gunner 12410 | -7/Waste | Entered Factory 12410 | -7/Factory | Accompanied by 13 allies 12765 | -7/Factory | Build established: Tank 12982 | -7/Factory | Cargo convoy interrupted 13026 | -7/Factory | Found Prototype Processor 13026 | -7/Factory | Identified Exp. Melee Analysis Suite 13034 | -7/Factory | Lost 9 allies 13073 | -7/Factory | Found Prototype Device 13073 | -7/Factory | Identified Exp. ECM Suite 13092 | -7/Factory | Discovered new exit (range 16) 13277 | -7/Factory | Build established: Scavenger-Tank 13778 | -7/Factory | Lost 4 parts (1n2u1w) 13874 | -7/Factory | Core integrity fell below 50% 13885 | -7/Factory | Identified exit to Lower Caves 14626 | -7/Factory | Specialist reinforcements revealed to be Infiltrators 14687 | -7/Factory | Core integrity fell below 20% 14721 | -7/Factory | Lost 8 parts (1p4n1u2w) 14730 | -7/Factory | Destroyed 11 combat bots 14797 | -7/Factory | Entered Lower Caves 14803 | -7/Lower Caves | Met a Warlord Commander 14804 | -7/Lower Caves | Learned location of Warlord (-4) 14805 | -7/Lower Caves | Warlord Commander delivered Encrypted Comm Array 14807 | -7/Lower Caves | Found Encrypted Comm Array 15026 | -7/Lower Caves | Identified exit to Lower Caves 15151 | -7/Lower Caves | Encountered a Warlord checkpoint 15285 | -7/Lower Caves | Spotted B-75 Beast 15416 | -7/Lower Caves | Attracted the attention of an 0b10 checkpoint 15456 | -7/Lower Caves | Lost 3 parts (1n1u1w) 15476 | -7/Lower Caves | Entered another Lower Caves area 15492 | -7/Lower Caves | Discovered new exit (range 8) 15505 | -7/Lower Caves | Entered Factory 15505 | -6/Factory | Evolved 2 slots: Propulsion x1, Utility x1 15759 | -6/Factory | Discovered new exit (range 13) 15942 | -6/Factory | Identified exit to Extension 15944 | -6/Factory | Entered Extension 15971 | -6/Extension | Lost 3 parts (3n) 16048 | -6/Extension | Lost 4 parts (2n1u1w) 16061 | -6/Extension | Rescued A7 16158 | -6/Extension | Rescued a captive Derelict 16158 | -6/Extension | Rescued a captive Derelict 16314 | -6/Extension | Build established: Tank 16673 | -6/Extension | Rescued a captive Derelict 17167 | -6/Extension | Build established: Skirmisher 17469 | -6/Extension | Build established: Scavenger-Skirmisher 17605 | -6/Extension | Rescued a captive Derelict 17606 | -6/Extension | Rescued a captive Derelict 17941 | -6/Extension | Discovered new exit (range 10) 17943 | -6/Extension | Discovered new exit (range 6) 18054 | -6/Extension | Build established: Commander-Assassin 18194 | -6/Extension | Disrupted transfer network 18204 | -6/Extension | Identified exit to Cetus 18208 | -6/Extension | Entered Cetus 18208 | -6/Cetus | Accompanied by 16 allies (A7) 18213 | -6/Cetus | Acquired a Cetus Manufacturing Module code from A7 18233 | -6/Cetus | Lost 5 allies 18238 | -6/Cetus | Spotted Cetus Guard 18238 | -6/Cetus | Spotted Cetus Guard 18239 | -6/Cetus | Spotted Cetus Guard 18241 | -6/Cetus | Spotted Cetus Guard 18253 | -6/Cetus | Allies destroyed Cetus Guard 18258 | -6/Cetus | Allies destroyed Cetus Guard 18261 | -6/Cetus | Allies destroyed Cetus Guard 18261 | -6/Cetus | Allies destroyed Cetus Guard 18288 | -6/Cetus | Lost 6 allies 18394 | -6/Cetus | Started Cetus Manufacturing Module 18419 | -6/Cetus | Manufactured an Enhanced Grunt 18425 | -6/Cetus | Escorted A7 to Cetus Mainframe 18444 | -6/Cetus | Manufactured an Enhanced Grunt 18469 | -6/Cetus | Manufactured an Enhanced Grunt 18494 | -6/Cetus | Manufactured an Enhanced Grunt 18519 | -6/Cetus | Manufactured an Enhanced Grunt 18585 | -6/Cetus | Discovered new exit (range 16) 18615 | -6/Cetus | Spotted Cetus Guard 18616 | -6/Cetus | Spotted Cetus Guard 18618 | -6/Cetus | Spotted Cetus Guard 18623 | -6/Cetus | Spotted Cetus Guard 18625 | -6/Cetus | Allies destroyed Cetus Guard 18625 | -6/Cetus | Allies destroyed Cetus Guard 18628 | -6/Cetus | Discovered new exit (range 15) 18633 | -6/Cetus | Allies destroyed Cetus Guard 18633 | -6/Cetus | Allies destroyed Cetus Guard 18636 | -6/Cetus | Met Revision 17 18711 | -6/Cetus | Identified exit to Archives 18717 | -6/Cetus | Build established: Commander-Tank 18727 | -6/Cetus | Entered Archives 18727 | -6/Archives | Accompanied by 14 allies (A7) 18732 | -6/Archives | Received a hacking code to weaken MAIN.C 18785 | -6/Archives | Lost 3 allies 18791 | -6/Archives | Discovered new exit (range 16) 18806 | -6/Archives | Discovered new exit (range 16) 19011 | -6/Archives | Discovered new exit (range 13) 19029 | -6/Archives | Identified exit to Hub_04(d) 19036 | -6/Archives | Entered Hub_04(d) 19036 | -6/Hub_04(d) | Accompanied by 10 allies 19058 | -6/Hub_04(d) | Build established: Scavenger-Tank 19167 | -6/Hub_04(d) | Identified exit to Factory 19516 | -6/Hub_04(d) | Network Hub disabled 19521 | -6/Hub_04(d) | Network Hub disabled 19547 | -6/Hub_04(d) | Murdered 6 allies 19560 | -6/Hub_04(d) | Spotted Lightning 19560 | -6/Hub_04(d) | Spotted Lightning 19561 | -6/Hub_04(d) | Spotted Lightning 19578 | -6/Hub_04(d) | Entered Factory 19578 | -5/Factory | Evolved 2 slots: Propulsion x1, Utility x1 19670 | -5/Factory | Garrison activated, responded to threat 19793 | -5/Factory | Discovered new exit (range 15) 19838 | -5/Factory | Identified exit to Upper Caves 19839 | -5/Factory | Entered Upper Caves 20308 | -5/Upper Caves | Discovered new exit (range 15) 20326 | -5/Upper Caves | Identified exit to Upper Caves 20331 | -5/Upper Caves | Entered another Upper Caves area 20408 | -5/Upper Caves | Encountered a Warlord checkpoint 20464 | -5/Upper Caves | Lost 3 allies 20521 | -5/Upper Caves | Discovered new exit (range 4) 21056 | -5/Upper Caves | Build established: Scavenger-Gunner 21104 | -5/Upper Caves | Attracted the attention of an 0b10 outpost 21144 | -5/Upper Caves | Destroyed 10 combat bots 21148 | -5/Upper Caves | Learned 4 Factory zone layouts 21174 | -5/Upper Caves | Spotted B-75 Beast 21302 | -5/Upper Caves | Discovered new exit (range 10) 21315 | -5/Upper Caves | Identified exit to Zhirov 21378 | -5/Upper Caves | Entered Zhirov 21378 | -5/Zhirov | Discovered new exit (range 3) 21409 | -5/Zhirov | Met Zhirov 21442 | -5/Zhirov | Learned location of Quarantine (-3) 21442 | -5/Zhirov | Learned location of Testing (-2) 21442 | -5/Zhirov | Learned location of Command (-1) 21456 | -5/Zhirov | Zhirov requested help retrieving the SGEMP Prototype 21489 | -5/Zhirov | Found Alien Artifact 21489 | -5/Zhirov | Identified Integrated Dissipator 21489 | -5/Zhirov | Installed Integrated Dissipator, increased core heat dissipation (+20) 21512 | -5/Zhirov | Found Alien Artifact 21673 | -5/Zhirov | Identified exit to Proximity Caves 21675 | -5/Zhirov | Entered Proximity Caves 21728 | -4/Proximity Caves | Spotted B-86 Titan 21778 | -4/Proximity Caves | Spotter reported a threat 21786 | -4/Proximity Caves | Learned 8 Research zone layouts 22040 | -4/Proximity Caves | Build established: Scavenger-Tank 22337 | -4/Proximity Caves | Identified exit to Factory 22383 | -4/Proximity Caves | System corruption reached 10% 22383 | -4/Proximity Caves | Entered Factory 22383 | -4/Factory | Evolved 2 slots: Power x1, Utility x1 22665 | -4/Factory | First assault squad dispatched 22717 | -4/Factory | Build established: Scavenger-Gunner 22799 | -4/Factory | Lost 3 parts (2u1w) 22800 | -4/Factory | Destroyed 7 combat bots 22938 | -4/Factory | System corruption reached 10% 22977 | -4/Factory | Released all parts (14) 22985 | -4/Factory | Lost 5 parts (1p2n1u1w) 23025 | -4/Factory | Core integrity fell below 50% 23048 | -4/Factory | Identified Transdimensional Reconstructor 23048 | -4/Factory | Warped through subspace 23049 | -4/Factory | Core integrity fell below 20% 23055 | -4/Factory | Lost 4 parts (3n1w) 23122 | -4/Factory | Destroyed by S-27 Virus with Autogun Last Messages --------------- 23048_ Warped through subspace. 23050_ R-10 Processor inserts Matter Compressor into recycling unit. 23068_ Acquired Hvy. Pick. 23071_ K-01 Serf collects debris. 23073_ System corrupted: IFF burst signal emitted. 23073_ Connecting with Garrison Access... >>Seal Access door sealed. 23081_ Connecting with Terminal... 23081_ ALERT: Suspicious activity at Terminal F017. Dispatching Investigation squad. 23089_ Slammed into W-44 Eye. 23093_ System corrupted: Heat flow error (+253). 23103_ Slammed into S-27 Virus. 23104_ Destabilizing: Core damaged (-34). 23110_ System corrupted: Matter fused (-9). 23118_ Slammed into S-27 Virus. 23121_ Triggered Alarm Trap. 23121_ An alarm sounds. 23121_ ALERT: Alarm triggered, dispatching investigation squad. Map ----- +----------------------------------------------------+ | | | | | | | | | | | | | | | | | | | | | | | ?????????????????????????????????????????????????? | | ?????????????????????????????????????????????????? | | ?????????????????????????????????????????????????? | | ?????????????????????????????????????????????????? | | ?????????????????????????????????????????????????? | | ?????????????????????????????????????????????????? | | ?????????????????????????????????????????????????? | | ?????????????????????????????????????????????????? | | ?????????????????????????????????????????????????? | | ?????????????????????????????????????????????????? | | ????????????????????????########?????????????????? | | ????????????????????????#] #?????????????????? | | ????????????????????????# #?????????????????? | | ?????#################### !]] #?????????????????? | | ???? ssss@s]] #?????????????????? | | ??? ##### ]]] #?????????????????? | | ??# #???# #?????????????????? | | ??# ############?????????????????? | | ??# # ] [#?????????????????????? | | ??+ + #?????????????????????? | | ??# # !!! !#?????????????????????? | | ??? # ## !! #?????????????????????? | | ???# ########### #??!! #?????????????????????? | | ???# #?????????# #?? !#?????????????????????? | | ???# #?????????# #???#####?????????????????????? | | ???# #?????????# ##########????????????????????? | | ?### ###???????# # ! #????????????????????? | | ## ######### # #????????????????????? | | ## ! ! !# # #????????????????????? | | ## # # != #????????????????????? | | + """ + + == #????????????????????? | | ## """ # # ! #????????????????????? | | ## """ # # #????????????????????? | | ## ## =# #] ""T"" #????????????????????? | | ## ########## # """"" #????????????????????? | | ## #????????# ########??????????????????????? | | ## #????????# #?????????????????????????????? | | ## #????????# #?????????????????????????????? | | ## #????????# #?????????????????????????????? | +----------------------------------------------------+ Best States ------------- Heat Dissipation 101 Energy Generation 39 Energy Capacity 520 Matter Stores 421 Matter Capacity 550 Sight Range 16 Robot Scan Range 16 Terrain Scan Density 10 Armor Coverage 1350 Resistance: TH 30 Core Shielding 20 Propulsion Shielding 90 Weapon Cycling 20 Phase Shifting 5 Evasion (%) 63 Targeting Accuracy 8 Melee Accuracy 12 Core Analysis 6 Recoil Reduction 6 Particle Charging 25 Offensive Hacking 24 Authchip Count 1 Item Schematics ----------------- Assault Drone Bay | -5/Zhirov | Free Exp. Heat Sink | -5/Zhirov | Free Exp. Optical Array | -5/Zhirov | Free Imp. Arc Thrower | -5/Zhirov | Free Robot Schematics ------------------ None Fabricated ------------ Nothing Alien Tech Used ----------------- Integrated Dissipator Transdimensional Reconstructor Achievements -------------- None Challenges ------------ None Game ------ Seed SpreadCatalystDetector Manual? 0 Play Time 02:56:52 Cumulative 214.4 hours Start 2024.07.22 @ 18:22:04 End 2024.07.25 @ 16:00:40 Sessions 4 Manual Loads 0 Difficulty Rogue Special Mode None Game No. 99 Rogue 99 Adventurer 0 Explorer 0 Win Type - Total 8 Types 4/1/3/0/0/0/0/0/0 Lore% 79 Gallery% 86 Achievement% 67 Wizard Run 0 Options --------- Layout 0 ASCII 0 Keyboard 0 Movement Mouse Keybinds 0 Fullscreen 2 Font 18/SmallcapsGlow Map View 76x50 Zoom Use 0% Tactical HUD 1 Map Filters NONE Filters NONE Steam 1 RUN: 33410f6d-15e8-40c9-8b1c-de63b26159c5